bitfinex/quotes_BTCUSD_20230404
["timestamp","ask_amount","ask_price","bid_price","bid_amount"]
[1680574752360,0.02267936,27837.0,27836.0,2.42843416]
[1680574752798,0.02267936,27837.0,27836.0,2.03406919]
[1680574753022,0.02267936,27837.0,27836.0,1.90482829]
[1680574753487,0.02267936,27837.0,27836.0,2.16334855]
[1680574753761,0.02267936,27837.0,27836.0,2.29438154]
[1680574754090,0.02267936,27837.0,27836.0,1.90480829]
[1680574754315,0.02267936,27837.0,27836.0,2.36657775]
[1680574754586,0.02267936,27837.0,27836.0,1.90480829]
[1680574755132,0.02267936,27837.0,27836.0,2.16332855]
[1680574757745,0.02267936,27837.0,27836.0,2.19949702]
[1680574757966,0.02267936,27837.0,27836.0,2.22596871]
[1680574760317,0.02267936,27837.0,27836.0,2.22604921]
[1680574760576,0.02267936,27837.0,27836.0,2.05364871]
[1680574762193,0.02267936,27837.0,27836.0,1.85122952]
[1680574762417,0.02267936,27837.0,27836.0,2.02354952]
[1680574763362,0.02267936,27837.0,27836.0,1.85122952]
[1680574765005,0.02267936,27837.0,27836.0,2.02353952]
[1680574765178,0.02267936,27837.0,27836.0,2.02362002]
[1680574765759,0.02267936,27837.0,27836.0,2.02353952]
[1680574767086,0.02267936,27837.0,27836.0,2.02362002]
[1680574767524,0.02267936,27837.0,27836.0,2.02353952]
[1680574769782,0.02259343,27837.0,27836.0,2.02353952]
[1680574769986,0.02259343,27837.0,27836.0,1.99553952]
[1680574770194,0.02259343,27837.0,27836.0,2.02353952]
[1680574770401,0.02259343,27837.0,27836.0,1.99553952]
[1680574770847,0.02259343,27837.0,27836.0,2.02353952]
[1680574772027,0.02259343,27837.0,27836.0,1.94613952]
[1680574772692,0.02259343,27837.0,27836.0,1.94622002]
[1680574772957,0.02259343,27837.0,27836.0,1.94613952]
[1680574773697,0.02259343,27837.0,27836.0,1.94612952]
[1680574774731,0.02259343,27837.0,27836.0,2.34612952]
[1680574775354,0.02259343,27837.0,27836.0,1.94612952]
[1680574775770,0.02259343,27837.0,27836.0,2.01729839]
[1680574775994,0.02259343,27837.0,27836.0,2.32919273]
[1680574776206,0.02259343,27837.0,27836.0,1.9993267]
[1680574776421,0.02259343,27837.0,27836.0,2.3688422]
[1680574776846,0.02259343,27837.0,27836.0,2.38940815]
[1680574777076,0.02259343,27837.0,27836.0,1.9993267]
[1680574777739,0.28724896,27843.0,27838.0,0.6]
[1680574777962,0.02288,27844.0,27843.0,0.77776032]
[1680574778178,0.02288,27849.0,27846.0,0.19986032]
[1680574778179,6e-05,27848.0,27846.0,0.19986032]
[1680574778445,0.02306,27849.0,27846.0,1.32703861]
[1680574778682,0.02306,27849.0,27846.0,1.82094261]
[1680574779323,0.02288,27849.0,27846.0,1.82094261]
[1680574779542,0.02288,27849.0,27846.0,2.06359337]
[1680574779993,0.02288,27849.0,27846.0,2.03559337]
[1680574780622,0.02288,27849.0,27846.0,1.84124261]
[1680574780817,0.02288,27849.0,27846.0,1.86924261]
[1680574781041,0.02288,27849.0,27846.0,2.02374261]
[1680574781268,0.02288,27849.0,27846.0,2.05320061]
[1680574781484,0.02288,27849.0,27846.0,2.30421303]
[1680574781699,0.02288,27849.0,27846.0,2.21875503]
[1680574781922,0.02288,27849.0,27846.0,2.8627128]
[1680574782170,0.02288,27849.0,27848.0,0.90322956]
[1680574782369,0.02288,27849.0,27848.0,1.56081829]
[1680574782608,0.02288,27849.0,27848.0,1.75098998]
[1680574782830,0.02288,27849.0,27848.0,1.75113048]
[1680574783046,0.02288,27849.0,27848.0,1.77083048]
[1680574783494,0.02288,27849.0,27848.0,1.9850926]
[1680574783730,0.02288,27849.0,27848.0,1.80681048]
[1680574783985,0.02288,27849.0,27848.0,1.83481048]
[1680574784660,0.02288,27849.0,27848.0,2.01430048]
[1680574784879,0.00474157,27850.0,27849.0,1.97274032]
[1680574785112,0.02288,27853.0,27852.0,0.5779]
[1680574785341,0.02288,27853.0,27852.0,1.86697273]
[1680574785559,0.02288,27853.0,27852.0,1.97137254]
[1680574785774,0.02288,27853.0,27852.0,2.39491675]
[1680574786036,0.02288,27853.0,27852.0,2.09977249]
[1680574786465,0.02288,27853.0,27852.0,1.97137254]
[1680574786897,0.02288,27853.0,27852.0,2.09977249]
[1680574787113,0.02288,27853.0,27852.0,2.01847254]
[1680574787333,0.02288,27853.0,27852.0,1.90487257]
[1680574787574,0.02288,27853.0,27852.0,1.93287257]
[1680574789549,0.02288,27853.0,27852.0,1.76067257]
[1680574789746,0.02288,27853.0,27852.0,1.93287257]
[1680574790153,0.02288,27853.0,27852.0,2.01847254]
[1680574790756,0.02288,27853.0,27852.0,2.01853254]
[1680574790961,0.02288,27853.0,27852.0,2.01847254]
[1680574791140,0.02288,27853.0,27852.0,2.44568157]
[1680574791387,0.16477681,27853.0,27852.0,0.81022043]
[1680574791582,0.17353177,27853.0,27852.0,0.28330987]
[1680574791801,0.10056,27853.0,27852.0,0.28330987]
[1680574792011,0.10056,27853.0,27852.0,0.24696032]
[1680574792228,0.10056,27853.0,27852.0,0.57918608]
[1680574792493,0.10056,27853.0,27852.0,0.55118608]
[1680574792699,0.10056,27853.0,27852.0,0.57918608]
[1680574792920,0.10056,27853.0,27852.0,0.55118608]
[1680574793143,0.10056,27853.0,27852.0,0.57918608]
[1680574793374,0.10056,27853.0,27852.0,0.55124608]
[1680574793588,0.10056,27853.0,27852.0,0.57318608]
[1680574795340,0.17806,27853.0,27852.0,0.57318608]
[1680574796237,0.17806,27853.0,27852.0,0.24096032]
[1680574797397,0.02306,27853.0,27852.0,0.24096032]
[1680574801503,0.10816,27853.0,27852.0,0.24096032]
[1680574807392,0.02306,27853.0,27852.0,0.61239188]
[1680574807634,0.02288,27854.0,27852.0,1.00465288]
[1680574808109,0.02288,27854.0,27853.0,1.58193415]
[1680574808369,0.02288,27854.0,27853.0,1.853833]
[1680574808596,0.02288,27854.0,27853.0,1.72568865]
[1680574808822,0.02288,27854.0,27853.0,1.85381185]
[1680574809050,0.02288,27854.0,27853.0,1.85395235]
[1680574809281,0.02288,27854.0,27853.0,1.88195235]
[1680574809521,0.02288,27854.0,27853.0,1.71055088]
[1680574809976,0.02288,27854.0,27853.0,1.88191947]
[1680574810195,0.02288,27854.0,27853.0,1.77452915]
[1680574810424,0.02288,27854.0,27853.0,1.87461936]
[1680574810652,0.02288,27854.0,27853.0,2.26251936]
[1680574810891,0.02288,27854.0,27853.0,2.23451936]
[1680574811119,0.02288,27854.0,27853.0,2.26251936]
[1680574811553,0.02288,27854.0,27853.0,2.34830757]
[1680574811814,0.02288,27854.0,27853.0,2.17693572]
[1680574812033,0.02288,27854.0,27853.0,2.22022915]
[1680574812491,0.02288,27854.0,27853.0,2.48825516]
[1680574812719,0.00012,27865.0,27854.0,0.4]
[1680574812911,0.02319968,27866.0,27862.0,0.37931032]
[1680574813181,0.02319968,27866.0,27863.0,0.37168956]
[1680574813409,0.02319968,27866.0,27864.0,0.015378]
[1680574813638,0.02319968,27866.0,27864.0,0.37008856]
[1680574813832,0.02319968,27866.0,27865.0,0.015936]
[1680574814706,0.02319968,27866.0,27865.0,0.036436]
[1680574814926,0.02319968,27866.0,27865.0,0.064436]
[1680574815140,0.02319968,27866.0,27865.0,0.0205]
[1680574815674,0.02319968,27866.0,27865.0,0.4545642]
[1680574816088,0.02319968,27866.0,27865.0,0.4825642]
[1680574816544,0.02319968,27866.0,27865.0,0.5105642]
[1680574818088,0.02295968,27866.0,27865.0,0.5095902]
[1680574818570,0.02295968,27866.0,27865.0,0.4935132]
[1680574818790,0.02295968,27866.0,27865.0,0.5094202]
[1680574819456,0.02295968,27866.0,27865.0,0.4935132]
[1680574819678,0.0228548,27866.0,27865.0,0.5112792]
[1680574819903,0.0228548,27866.0,27865.0,0.4935132]
[1680574820123,0.0228548,27866.0,27865.0,0.5101982]
[1680574820351,0.0228548,27866.0,27865.0,0.4935132]
[1680574821465,0.0228548,27866.0,27865.0,0.4375132]
[1680574821679,0.0228548,27866.0,27865.0,0.4655132]
[1680574822805,0.0228548,27866.0,27865.0,0.0485]
[1680574823041,0.0228548,27866.0,27865.0,0.43944615]
[1680574824153,0.0228548,27866.0,27865.0,0.41144615]
[1680574824366,0.0228548,27866.0,27865.0,0.43944615]
[1680574824800,0.02271512,27866.0,27865.0,0.43944615]
[1680574825019,0.02271512,27866.0,27865.0,0.42057556]
[1680574825469,0.02271512,27866.0,27865.0,0.39257556]
[1680574825683,0.02271512,27866.0,27865.0,0.844817]
[1680574825903,0.02271512,27866.0,27865.0,0.861315]
[1680574826323,0.02271512,27866.0,27865.0,0.49010644]
[1680574827230,0.02271512,27866.0,27865.0,0.49024694]
[1680574828320,0.02271512,27866.0,27865.0,0.48910644]
[1680574828779,0.02271512,27866.0,27865.0,0.50672944]
[1680574829005,0.02271512,27866.0,27865.0,0.48910644]
[1680574829905,0.02271512,27866.0,27865.0,0.50604444]
[1680574830122,0.02271512,27866.0,27865.0,0.48910644]
[1680574830803,0.02271512,27866.0,27865.0,0.50590844]
[1680574831280,0.02271512,27866.0,27865.0,0.860619]
[1680574831497,0.02271512,27866.0,27865.0,1.040039]
[1680574831708,0.02271512,27866.0,27865.0,0.59843256]
[1680574831925,0.02271512,27866.0,27865.0,0.82217552]
[1680574832146,0.02271512,27866.0,27865.0,0.46746496]
[1680574832357,0.02271512,27866.0,27865.0,0.45066296]
[1680574832567,0.02271512,27866.0,27865.0,0.43830896]
[1680574832790,0.02271512,27866.0,27865.0,0.46630896]
[1680574834308,0.02271512,27866.0,27865.0,0.46644946]
[1680574834509,0.02271512,27866.0,27865.0,0.43830896]
[1680574835401,0.02271512,27866.0,27865.0,0.82101952]
[1680574838080,0.02271512,27866.0,27865.0,0.41785656]
[1680574838531,0.02271512,27866.0,27865.0,0.75329512]
[1680574839231,0.02271512,27866.0,27865.0,0.41785656]
[1680574839456,0.02271512,27866.0,27865.0,0.83596728]
[1680574840152,0.02271512,27866.0,27865.0,0.83582678]
[1680574840354,0.02271512,27866.0,27865.0,0.41785656]
[1680574840791,0.02271512,27866.0,27865.0,0.76697427]
[1680574841305,0.02271512,27866.0,27865.0,0.73897427]
[1680574841524,0.02271512,27866.0,27865.0,0.76711477]
[1680574841742,0.02271512,27866.0,27865.0,0.73897427]
[1680574842393,0.02271512,27866.0,27865.0,0.76697427]
[1680574843964,0.02258728,27866.0,27865.0,0.76697427]
[1680574845063,0.02258728,27866.0,27865.0,0.73897427]
[1680574845350,0.02258728,27866.0,27865.0,0.76697427]
[1680574845565,0.02258728,27866.0,27865.0,0.73897427]
[1680574845785,0.02258728,27866.0,27865.0,0.75132827]
[1680574846011,0.02258728,27866.0,27865.0,0.76785627]
[1680574848381,0.02258728,27866.0,27865.0,0.73985627]
[1680574848598,0.02258728,27866.0,27865.0,0.76785627]
[1680574850936,0.02258728,27866.0,27865.0,0.73985627]
[1680574851161,0.02258728,27866.0,27865.0,0.76785627]
[1680574852018,0.02258728,27866.0,27865.0,0.76735627]
[1680574852670,0.02258728,27866.0,27865.0,0.73935627]
[1680574852890,0.02258728,27866.0,27865.0,0.76735627]
[1680574854015,0.02258728,27866.0,27865.0,0.75371027]
[1680574854238,0.02258728,27866.0,27865.0,0.78171027]
[1680574854462,0.02258728,27866.0,27865.0,0.76735627]
[1680574855054,0.02258728,27866.0,27865.0,0.8527199]
[1680574855490,0.02258728,27866.0,27865.0,1.00876535]
[1680574855705,0.02258728,27866.0,27865.0,0.8808604]
[1680574855927,0.02258728,27866.0,27865.0,1.00890585]
[1680574856159,0.02258728,27866.0,27865.0,0.95290585]
[1680574856374,0.02258728,27866.0,27865.0,0.98090585]
[1680574856586,0.02258728,27866.0,27865.0,0.95276535]
[1680574856796,0.02258728,27866.0,27865.0,0.98076535]
[1680574857237,0.02258728,27866.0,27865.0,0.95276535]
[1680574857688,0.02258728,27866.0,27865.0,1.16413578]
[1680574857904,0.02258728,27866.0,27865.0,1.17848978]
[1680574858134,0.02258728,27866.0,27865.0,1.20648978]
[1680574858356,0.02258728,27866.0,27865.0,1.34921704]
[1680574858568,0.02258728,27866.0,27865.0,1.24917159]
[1680574858818,0.02258728,27866.0,27865.0,1.22117159]
[1680574859006,0.02258728,27866.0,27865.0,1.24917159]
[1680574860113,0.02258728,27866.0,27865.0,1.37774583]
[1680574860327,0.02258728,27866.0,27865.0,1.24917159]
[1680574860546,0.02258728,27866.0,27865.0,1.37774635]
[1680574860804,0.02258728,27866.0,27865.0,1.34974635]
[1680574860995,0.02258728,27866.0,27865.0,1.37774635]
[1680574861493,0.02258728,27866.0,27865.0,1.37778364]
[1680574862354,0.02258728,27866.0,27865.0,1.22117159]
[1680574862764,0.02258728,27866.0,27865.0,1.24917159]
[1680574863726,0.02258728,27866.0,27865.0,1.22117159]
[1680574863897,0.02258728,27866.0,27865.0,1.23481759]
[1680574864116,0.02258728,27866.0,27865.0,1.24917159]
[1680574865441,0.02258728,27866.0,27865.0,1.23481759]
[1680574869185,0.02258728,27866.0,27865.0,1.20681759]
[1680574869406,0.02258728,27866.0,27865.0,1.23481759]
[1680574869776,0.02258728,27866.0,27865.0,1.20681759]
[1680574869966,0.02258728,27866.0,27865.0,1.23481759]
[1680574870218,0.02258728,27866.0,27865.0,1.20681759]
[1680574870425,0.02258728,27866.0,27865.0,1.36333396]
[1680574870609,0.02258728,27866.0,27865.0,1.41424759]
[1680574871128,0.02258728,27866.0,27865.0,1.54274366]
[1680574871890,0.02258728,27866.0,27865.0,1.55709766]
[1680574872096,0.02258728,27866.0,27865.0,1.40060159]
[1680574872396,0.02258728,27866.0,27865.0,1.38624759]
[1680574872671,0.02258728,27866.0,27865.0,1.41424759]
[1680574872958,0.02258728,27866.0,27865.0,1.07948388]
[1680574873155,0.02258728,27866.0,27865.0,1.52897158]
[1680574873359,0.02258728,27866.0,27865.0,1.32154158]
[1680574873567,0.02258728,27866.0,27865.0,1.34954158]
[1680574874202,0.02258728,27866.0,27865.0,1.33518758]
[1680574874416,0.02258728,27866.0,27865.0,1.33532808]
[1680574874653,0.02258728,27866.0,27865.0,1.33518758]
[1680574877132,0.0224891,27866.0,27865.0,1.33518758]
[1680574877712,0.0224891,27866.0,27865.0,1.46369003]
[1680574879044,0.0224891,27866.0,27865.0,1.33518758]
[1680574879494,0.0224891,27866.0,27865.0,1.33532808]
[1680574880070,0.0224891,27866.0,27865.0,1.33518758]
[1680574882637,0.0224891,27866.0,27865.0,0.88569988]
[1680574882858,0.0224891,27866.0,27865.0,1.22976775]
[1680574884918,0.16438591,27866.0,27865.0,0.87505719]
[1680574885233,0.16438591,27866.0,27865.0,0.51506695]
[1680574885234,0.18956137,27866.0,27865.0,0.51506695]
[1680574885449,0.18956137,27866.0,27865.0,0.51520745]
[1680574886391,0.0991891,27866.0,27865.0,0.51520745]
[1680574886619,0.0991891,27866.0,27865.0,0.51506695]
[1680574886835,0.0991891,27866.0,27865.0,0.71492727]
[1680574887066,0.0991891,27866.0,27865.0,0.92833635]
[1680574887288,0.0991891,27866.0,27865.0,0.75700346]
[1680574887958,0.0224891,27866.0,27865.0,1.20071283]
[1680574888386,0.0224891,27866.0,27865.0,0.57411514]
[1680574888606,0.20786531,27866.0,27865.0,0.15652515]
[1680574888820,0.20786531,27866.0,27865.0,0.45325921]
[1680574889084,0.20786531,27866.0,27865.0,0.15652515]
[1680574889085,0.20804531,27866.0,27865.0,0.15652515]
[1680574889321,0.20804531,27866.0,27865.0,0.45325921]
[1680574889523,0.0999691,27866.0,27865.0,0.59661114]
[1680574889737,0.0999691,27866.0,27865.0,0.60561114]
[1680574889955,0.0999691,27866.0,27865.0,0.80811114]
[1680574890646,0.21443636,27866.0,27865.0,0.80811114]
[1680574890862,0.21443636,27866.0,27865.0,0.63675921]
[1680574891514,0.21443636,27866.0,27865.0,0.43425921]
[1680574891704,0.21443636,27866.0,27865.0,0.13752515]
[1680574891953,0.21443636,27866.0,27865.0,0.43425921]
[1680574892415,0.21443636,27866.0,27865.0,0.13752515]
[1680574892632,0.21443636,27866.0,27865.0,0.42525921]
[1680574892846,0.21443636,27866.0,27865.0,0.42725921]
[1680574893084,0.87343874,27866.0,27865.0,0.002]
[1680574893279,0.48997504,27866.0,27865.0,0.08771159]
[1680574893533,0.44697604,27866.0,27865.0,0.08771159]
[1680574893758,0.48834504,27866.0,27865.0,0.08771159]
[1680574893975,0.48834504,27866.0,27865.0,0.08571159]
[1680574894198,0.49034504,27866.0,27865.0,0.08671159]
[1680574894657,0.49034504,27866.0,27865.0,0.001]
[1680574895446,0.44897604,27866.0,27865.0,0.001]
[1680574896685,0.48234204,27866.0,27865.0,0.001]
[1680574896917,0.49095404,27866.0,27865.0,0.001]
[1680574898015,0.8456646,27866.0,27865.0,0.001]
[1680574900036,0.44036404,27866.0,27865.0,0.001]
[1680574900260,0.44022436,27866.0,27865.0,0.001]
[1680574901358,0.28572436,27866.0,27865.0,0.001]
[1680574901800,0.28372436,27866.0,27864.0,0.08571159]
[1680574902029,0.1546,27865.0,27864.0,0.08571159]
[1680574902262,0.15478,27865.0,27864.0,0.08571159]
[1680574902492,0.1546,27865.0,27864.0,0.08571159]
[1680574903173,0.15478,27865.0,27864.0,0.08771159]
[1680574903830,0.15478,27865.0,27864.0,0.48295659]
[1680574904076,0.15478,27865.0,27860.0,0.21340908]
[1680574904077,0.15454,27864.0,27860.0,0.21340908]
[1680574904331,0.15454,27864.0,27859.0,0.08571293]
[1680574904332,0.73275024,27861.0,27859.0,0.08571293]
[1680574904592,0.73275024,27861.0,27856.0,0.00018]
[1680574904593,0.00013968,27858.0,27856.0,0.00018]
[1680574904833,0.00013968,27858.0,27854.0,0.03679292]
[1680574904834,0.49660737,27857.0,27854.0,0.03679292]
[1680574905071,0.4637,27855.0,27854.0,0.03679292]
[1680574905307,1.02826947,27855.0,27854.0,0.03679292]
[1680574905526,1.28058832,27855.0,27854.0,0.03679292]
[1680574905754,1.51393127,27855.0,27854.0,0.03679292]
[1680574906017,1.51693127,27855.0,27854.0,0.03879292]
[1680574906903,1.51693127,27855.0,27854.0,0.03679292]
[1680574906904,1.51393127,27855.0,27854.0,0.03679292]
[1680574907138,1.51693127,27855.0,27854.0,0.03879292]
[1680574907624,0.1,27854.0,27851.0,0.20004032]
[1680574907843,0.4645,27852.0,27851.0,0.20004032]
[1680574908063,0.516657,27852.0,27851.0,0.20004032]
[1680574908748,0.516657,27852.0,27851.0,0.20204032]
[1680574909637,0.353441,27852.0,27851.0,0.59778011]
[1680574909860,0.367057,27852.0,27851.0,0.59978011]
[1680574910548,0.353441,27852.0,27851.0,0.59778011]
[1680574910777,0.353441,27852.0,27851.0,0.59878011]
[1680574910778,0.367057,27852.0,27851.0,0.59878011]
[1680574911249,0.367057,27852.0,27851.0,0.20104032]
[1680574911908,0.211957,27852.0,27851.0,0.20104032]
[1680574912573,0.206957,27852.0,27851.0,0.20004032]
[1680574912796,0.211957,27852.0,27851.0,0.20204032]
[1680574913458,0.211957,27852.0,27851.0,0.59624639]
[1680574914593,0.211957,27852.0,27851.0,0.20204032]
[1680574914825,0.234894,27852.0,27851.0,0.20204032]
[1680574915283,0.211957,27852.0,27851.0,0.20204032]
[1680574915524,0.211357,27852.0,27851.0,0.20204032]
[1680574915729,0.56606756,27852.0,27851.0,0.20204032]
[1680574915936,0.211357,27852.0,27851.0,0.20204032]
[1680574919313,0.211357,27852.0,27851.0,0.20192032]
[1680574919510,0.211357,27852.0,27851.0,0.20186032]
[1680574919876,0.211357,27852.0,27851.0,0.20204032]
[1680574921848,0.211357,27852.0,27851.0,0.61655876]
[1680574922064,0.167816,27852.0,27851.0,0.61655876]
[1680574922845,0.210635,27852.0,27851.0,0.61655876]
[1680574923066,0.1592,27852.0,27851.0,0.61655876]
[1680574923500,0.167816,27852.0,27851.0,0.61655876]
[1680574925320,0.005,27852.0,27851.0,1.30381288]
[1680574925558,0.0001,27852.0,27851.0,1.79257888]
[1680574925802,0.0001,27852.0,27851.0,1.79239888]
[1680574926035,0.008614,27862.0,27861.0,0.19986032]
[1680574926263,0.05165,27862.0,27861.0,0.19986032]
[1680574927274,0.008794,27862.0,27861.0,0.19986032]
[1680574927736,0.009794,27862.0,27861.0,0.19986032]
[1680574927958,0.008794,27862.0,27861.0,0.19986032]
[1680574928223,0.008794,27862.0,27861.0,0.20186032]
[1680574928513,0.008794,27862.0,27861.0,0.19986032]
[1680574928767,0.008794,27862.0,27861.0,0.20886032]
[1680574928982,0.008794,27862.0,27861.0,0.19986032]
[1680574929199,0.008794,27862.0,27861.0,0.20186032]
[1680574930075,0.00018,27862.0,27861.0,0.19986032]
[1680574930309,0.008793,27863.0,27861.0,0.65273595]
[1680574930549,0.00018,27863.0,27861.0,0.81793595]
[1680574930775,0.00018,27863.0,27861.0,0.64573595]
[1680574930999,0.00018,27863.0,27861.0,0.64373595]
[1680574931473,0.00018,27863.0,27861.0,0.65273595]
[1680574931706,0.0311011,27866.0,27862.0,0.1722]
[1680574931707,0.00018,27864.0,27862.0,0.1722]
[1680574931941,0.008613,27865.0,27864.0,0.19968032]
[1680574933798,0.008613,27865.0,27864.0,0.20168032]
[1680574934049,0.008613,27865.0,27864.0,0.19968032]
[1680574934279,0.008613,27865.0,27864.0,0.20168032]
[1680574935651,0.008613,27865.0,27864.0,0.19968032]
[1680574935888,0.05734761,27865.0,27864.0,0.20168032]
[1680574936334,0.052515,27865.0,27864.0,0.20168032]
[1680574936612,0.052515,27865.0,27864.0,0.19968032]
[1680574936834,0.052515,27865.0,27864.0,0.20168032]
[1680574937061,0.052515,27865.0,27864.0,0.19968032]
[1680574937283,0.053515,27865.0,27864.0,0.19968032]
[1680574938426,0.052515,27865.0,27864.0,0.19968032]
[1680574938651,0.06285591,27865.0,27864.0,0.19968032]
[1680574944910,0.14189681,27854.0,27851.0,0.63046876]
[1680574945143,0.0855,27852.0,27851.0,0.63046876]
[1680574945366,0.27892281,27852.0,27851.0,0.63046876]
[1680574945595,0.137026,27852.0,27851.0,0.63246876]
[1680574945846,0.137026,27852.0,27851.0,0.63046876]
[1680574946060,0.141026,27852.0,27851.0,0.63146876]
[1680574947016,0.137026,27852.0,27851.0,0.63046876]
[1680574947456,0.141026,27852.0,27851.0,0.63146876]
[1680574951803,0.141026,27852.0,27851.0,0.20092032]
[1680574952499,0.0713519,27852.0,27851.0,0.20092032]
[1680574953071,0.055526,27852.0,27851.0,0.20092032]
[1680574954249,0.055526,27852.0,27851.0,0.20074032]
[1680574955365,0.055526,27852.0,27851.0,0.20092032]
[1680574957255,0.055526,27852.0,27851.0,0.20086032]
[1680574957460,0.055526,27852.0,27851.0,0.20074032]
[1680574957667,0.089993,27852.0,27851.0,0.20074032]
[1680574958008,0.089993,27852.0,27851.0,0.20092032]
[1680574958360,0.1092356,27852.0,27851.0,0.20092032]
[1680574959001,0.1052356,27852.0,27851.0,0.19992032]
[1680574959218,0.1092356,27852.0,27851.0,0.20092032]
[1680574959706,0.1052356,27852.0,27851.0,0.19992032]
[1680574959911,0.1092356,27852.0,27851.0,0.20092032]
[1680574960639,0.0663256,27852.0,27851.0,0.20092032]
[1680574960873,0.087146,27852.0,27851.0,0.20092032]
[1680574961556,0.043083,27852.0,27851.0,0.62504696]
[1680574961772,0.012616,27852.0,27851.0,0.61165758]
[1680574962436,0.008616,27852.0,27851.0,0.61065758]
[1680574962657,0.012616,27852.0,27851.0,0.61165758]
[1680574963485,0.05605,27852.0,27851.0,0.61165758]
[1680574964160,0.012616,27852.0,27851.0,0.61165758]
[1680574965516,0.053613,27852.0,27851.0,0.61165758]
[1680574966233,0.012616,27852.0,27851.0,0.61165758]
[1680574967680,0.01252537,27852.0,27851.0,0.61159758]
[1680574967886,0.01252537,27852.0,27851.0,0.61147758]
[1680574968746,0.05189737,27852.0,27851.0,0.61147758]
[1680574969179,0.01252537,27852.0,27851.0,0.61147758]
[1680574969570,0.05463537,27852.0,27851.0,0.61147758]
[1680574970123,0.01252537,27852.0,27851.0,0.61147758]
[1680574970519,0.05485437,27852.0,27851.0,0.61147758]
[1680574970946,0.01252537,27852.0,27851.0,0.61147758]
[1680574971605,0.05504337,27852.0,27851.0,0.61147758]
[1680574972039,0.00852537,27852.0,27851.0,0.61047758]
[1680574972294,0.01252537,27852.0,27851.0,0.61147758]
[1680574973201,0.00852537,27852.0,27851.0,0.61047758]
[1680574973446,0.01252537,27852.0,27851.0,0.61147758]
[1680574973694,0.05351437,27852.0,27851.0,0.61147758]
[1680574973909,0.05751437,27852.0,27851.0,0.61247758]
[1680574974968,0.01652537,27852.0,27851.0,0.61247758]
[1680574976279,0.01652537,27852.0,27851.0,0.61265758]
[1680574977179,0.01652537,27852.0,27851.0,0.61247758]
[1680574977472,0.05615437,27852.0,27851.0,0.61247758]
[1680574978280,0.01652537,27852.0,27851.0,0.61247758]
[1680574979466,0.008,27852.0,27851.0,1.15849488]
[1680574979815,0.43842721,27860.0,27855.0,0.19974032]
[1680574979816,0.008615,27858.0,27855.0,0.19974032]
[1680574980217,0.008615,27858.0,27855.0,0.55445088]
[1680574980508,0.008615,27858.0,27855.0,0.19974032]
[1680574981007,0.008615,27858.0,27856.0,0.013]
[1680574982001,0.008615,27858.0,27855.0,0.19974032]
[1680574982229,0.00018,27862.0,27860.0,0.19974032]
[1680574982461,0.060139,27862.0,27860.0,0.19974032]
[1680574982680,0.051253,27861.0,27860.0,0.19974032]
[1680574982915,0.008614,27861.0,27860.0,0.19974032]
[1680574983145,0.008614,27861.0,27860.0,0.20074032]
[1680574983375,0.008614,27861.0,27860.0,0.19974032]
[1680574983592,0.011614,27861.0,27860.0,0.19974032]
[1680574985720,0.054018,27861.0,27860.0,0.19974032]
[1680574986215,0.011614,27861.0,27860.0,0.19974032]
[1680574986650,0.052448,27861.0,27860.0,0.19974032]
[1680574986891,0.55604087,27861.0,27857.0,0.00018]
[1680574987129,0.55604087,27861.0,27855.0,0.19974032]
[1680574987130,0.1718,27858.0,27855.0,0.19974032]
[1680574987371,0.1704,27856.0,27855.0,0.19974032]
[1680574987657,0.71818337,27856.0,27855.0,0.19974032]
[1680574987883,0.49878454,27856.0,27855.0,0.19974032]
[1680574988082,0.49896454,27856.0,27855.0,0.22274032]
[1680574988361,0.49896454,27856.0,27855.0,0.19974032]
[1680574988585,0.49896454,27856.0,27855.0,0.20174032]
[1680574988819,0.4189591,27856.0,27855.0,0.20174032]
[1680574990386,0.5048591,27856.0,27855.0,0.20174032]
[1680574991545,0.4119591,27856.0,27855.0,0.19974032]
[1680574991769,0.4189591,27856.0,27855.0,0.20174032]
[1680574992002,0.46602411,27856.0,27855.0,0.20174032]
[1680574992983,0.4189591,27856.0,27855.0,0.20174032]
[1680574994880,0.49816656,27856.0,27855.0,0.20174032]
[1680574996746,0.49816656,27856.0,27855.0,0.67003161]
[1680574996747,0.007,27856.0,27855.0,0.67003161]
[1680574996981,0.015615,27856.0,27855.0,0.57797861]
[1680574997224,0.007,27856.0,27855.0,0.57797861]
[1680574997471,0.008615,27857.0,27855.0,0.66169154]
[1680574997692,0.003,27856.0,27855.0,0.66169154]
[1680574997934,0.008615,27858.0,27855.0,0.67780454]
[1680574998149,0.008615,27858.0,27855.0,0.67187154]
[1680574999734,0.008615,27858.0,27855.0,0.66187154]
[1680574999975,0.008615,27858.0,27855.0,0.67187154]
[1680575000414,0.008615,27858.0,27856.0,0.38251606]
[1680575000632,0.008615,27858.0,27856.0,0.38263606]
[1680575000858,0.008615,27858.0,27856.0,0.38269606]
[1680575002459,0.008615,27858.0,27856.0,0.38569606]
[1680575003143,0.008615,27858.0,27857.0,0.41562556]
[1680575003359,0.011615,27858.0,27857.0,0.41562556]
[1680575003801,0.008615,27858.0,27857.0,0.41562556]
[1680575004024,0.011615,27858.0,27857.0,0.41562556]
[1680575004295,0.008615,27858.0,27856.0,0.00018]
[1680575004545,0.57027056,27857.0,27854.0,0.00018]
[1680575004756,0.086,27855.0,27853.0,0.19992032]
[1680575004990,0.2536,27854.0,27853.0,0.19992032]
[1680575005895,0.2536,27854.0,27853.0,0.19974032]
[1680575006112,0.2596,27854.0,27853.0,0.20174032]
[1680575006866,0.2596,27854.0,27853.0,0.19974032]
[1680575006867,0.2536,27854.0,27853.0,0.19974032]
[1680575007086,0.2596,27854.0,27853.0,0.20174032]
[1680575007331,0.2536,27854.0,27853.0,0.19974032]
[1680575008246,0.2596,27854.0,27853.0,0.20174032]
[1680575008469,0.3176242,27854.0,27853.0,0.20174032]
[1680575008688,0.2596,27854.0,27853.0,0.19974032]
[1680575008914,0.2536,27854.0,27853.0,0.20174032]
[1680575009135,0.2596,27854.0,27853.0,0.20174032]
[1680575009600,0.1745,27854.0,27853.0,0.20174032]
[1680575009825,0.1745,27854.0,27853.0,0.54593433]
[1680575009826,0.0745,27854.0,27853.0,0.54593433]
[1680575012607,0.53612476,27854.0,27853.0,0.002]
[1680575013060,0.54462476,27854.0,27853.0,0.002]
[1680575013521,0.64462476,27854.0,27853.0,0.002]
[1680575015053,1.02252476,27854.0,27853.0,0.002]
[1680575015495,1.32296444,27854.0,27853.0,0.00190908]
[1680575015717,1.32278444,27854.0,27853.0,0.00190908]
[1680575016737,1.32296444,27854.0,27853.0,0.00190908]
[1680575021023,0.84506444,27854.0,27853.0,0.00190908]
[1680575023942,0.94506444,27854.0,27853.0,0.00190908]